Cogmind - Beta 10.2 @@@ ROGUE MODE // 2021.07.13 @ 20:08:56 Player: Sanctumkeeper Result: Destroyed by S-43 Plague with Heavy Machine Gun Performance ------------- Evolutions (9) 4500 Regions Visited (30) 6000 Robots Destroyed (469) 2345 Value Destroyed (24946) 24946 Prototype IDs (27) 540 Alien Tech Used (1) 200 Bonus (11991) 11991 TOTAL SCORE: 50522 Bonus ------- High Alert Combat Kills 6173 Follower Combat Kills 2272 Entered Garrisons 800 Used RIF Installer 2000 Met Data Miner 300 Built Enhanced Grunts 300 Met R17 at Cetus 500 Friendly Fire -354 Cogmind --------- Core Integrity 0/1600 Matter 140/300 Energy 99/100 System Corruption 8% Temperature Cool (0) Movement Core (50) Location -1/Garrison Parts ------- > --- POWER (2) -------- (None) > --- PROPULSION (6) --- (None) > --- UTILITY (12) ----- (None) > --- WEAPON (5) ------- (None) > --- INVENTORY (4) ---- Advanced Sensor Array System Restoration Module Advanced Remote Datajack Enhanced Force Lance Peak State ------------ > --- POWER ------------ Light Quantum Reactor > --- PROPULSION ------- Advanced Heavy Treads Advanced Heavy Treads Biometal Heavy Treads > --- UTILITY ---------- Advanced Heat Sink Large Storage Unit Large Storage Unit Large Storage Unit Advanced Signal Interpreter Advanced Target Analyzer Advanced Weapon Cycler Centrium Light Armor Plating Centrium Light Armor Plating Centrium Light Armor Plating AEGIS Remote Shield Advanced Hacking Suite > --- WEAPON ----------- Railgun Railgun Improved KE Penetrator Hypervelocity Railgun > --- INVENTORY -------- Light Quantum Reactor Advanced Heavy Treads Biometal Heavy Treads Biometal Heavy Treads Matter Compressor Advanced Terrain Scan Processor Advanced Phase Shifter Heavy Armor Plating Point Defense System System Restoration Module Heavy Neutron Cannon KE Penetrator Railgun Improved KE Penetrator Improved KE Penetrator Fusion Bomb Launcher Advanced Remote Datajack Power Sword [Rating: 173] Favorites ----------- Power Light Angular Momentum Engine Engine Light Angular Momentum Engine Power Core Light Nuclear Core Reactor Quantum Reactor Propulsion Light Treads Treads Light Treads Leg Carbon-fiber Leg Wheel Wheel Flight Unit Impulse Thruster Utility Large Storage Unit Device Long-range Sensor Array Storage Large Storage Unit Processor Advanced Signal Interpreter Hackware Relay Coupler [NC] Protection Centrium Medium Armor Plating Weapon Autogun Energy Gun Lightning Gun Energy Cannon Heavy Phase Cannon Ballistic Gun Autogun Ballistic Cannon Antimatter Cannon Launcher Improved Proton Missile Launcher Special Weapon Remote Datajack Slashing Weapon Plasma Sword Piercing Weapon Spear Build | -11 -10 -10 -9 -9 -9 -9 -7 -7 -7 -7 -6 -6 -6 -6 -6 -5 -5 -5 -5 -4 -4 -4 -4 -3 -3 -3 -2 -2 -1 -1 ------- Run | Scr Mat Min Mat Sto Gar Rec Fac Low Low Dat Pro Fac Gar Fac Gar Fac Ext Cet Arc Fac Upp Upp War Pro Res Tes Res Qua Acc Gar Slots Evolved 18 | . . . 2 . . . 4 . . . . 2 . . . 2 . . . 2 . . . . 2 . 2 . 2 . Power 1 | . . . . . . . . . . . . . . . . . . . . . . . . . . . . . 1 . Propulsion 4 | . . . 1 . . . . . . . . 1 . . . . . . . 1 . . . . . . 1 . . . Utility 10 | . . . 1 . . . 3 . . . . 1 . . . 2 . . . 1 . . . . 1 . 1 . . . Weapon 3 | . . . . . . . 1 . . . . . . . . . . . . . . . . . 1 . . . 1 . Parts Attached 535 | 6 17 2 12 20 4 . 34 8 8 . 5 34 25 22 14 37 25 14 4 25 3 . . 29 96 36 21 9 25 . Power 37 | 1 3 . 1 3 1 . 1 . 1 . . 3 2 . 2 2 . 2 . . . . . 3 6 . 2 1 3 . Engine 11 | 1 3 . 1 . . . . . 1 . . 1 1 . 2 1 . . . . . . . . . . . . . . Core 5 | . . . . 2 . . 1 . . . . 2 . . . . . . . . . . . . . . . . . . Reactor 21 | . . . . 1 1 . . . . . . . 1 . . 1 . 2 . . . . . 3 6 . 2 1 3 . Propulsion 113 | 2 3 . 6 10 . . 13 1 3 . 3 12 8 4 4 6 3 2 . 1 . . . 5 12 7 4 1 3 . Treads 90 | 1 2 . 6 10 . . 13 1 2 . . . 4 4 4 6 3 2 . 1 . . . 5 12 7 4 1 2 . Leg 19 | . . . . . . . . . . . 3 12 4 . . . . . . . . . . . . . . . . . Wheel 3 | 1 1 . . . . . . . 1 . . . . . . . . . . . . . . . . . . . . . Hover . | . . . . . . . . . . . . . . . . . . . . . . . . . . . . . . . Flight 1 | . . . . . . . . . . . . . . . . . . . . . . . . . . . . . 1 . Utility 224 | 1 6 . 1 . . . 10 6 . . 1 7 9 13 3 24 14 6 3 13 3 . . 13 58 16 8 2 7 . Device 141 | . . . . . . . 3 3 . . . 3 6 8 . 18 10 5 3 10 2 . . 9 45 10 1 2 3 . Storage 23 | 1 5 . 1 . . . 5 1 . . . . . 2 . 1 . . . 1 . . . . 4 1 . . 1 . Processor 7 | . . . . . . . . 1 . . . 1 . 1 . 1 . . . 1 . . . . 1 . . . 1 . Hackware 7 | . . . . . . . . . . . . . . 1 1 . 1 . . . . . . . 1 2 . . 1 . Protection 46 | . 1 . . . . . 2 1 . . 1 3 3 1 2 4 3 1 . 1 1 . . 4 7 3 7 . 1 . Artifact . | . . . . . . . . . . . . . . . . . . . . . . . . . . . . . . . Weapon 161 | 2 5 2 4 7 3 . 10 1 4 . 1 12 6 5 5 5 8 4 1 11 . . . 8 20 13 7 5 12 . Energy Gun 8 | 2 1 . . . . . 1 . 1 . . 3 . . . . . . . . . . . . . . . . . . Energy Cannon 35 | . . . . . . . 1 . . . . 8 3 3 3 4 2 . . 2 . . . . 6 1 1 . 1 . Ballistic Gun 94 | . 4 2 3 7 3 . 8 1 2 . . . 3 1 . . 4 4 1 8 . . . 5 13 9 6 4 6 . Ballistic Cannon 1 | . . . . . . . . . . . . 1 . . . . . . . . . . . . . . . . . . Launcher 10 | . . . 1 . . . . . 1 . . . . . 2 1 1 . . 1 . . . 3 . . . . . . Special Weapon 6 | . . . . . . . . . . . . . . 1 . . 1 . . . . . . . 1 . . . 3 . Impact Weapon . | . . . . . . . . . . . . . . . . . . . . . . . . . . . . . . . Slashing Weapon 6 | . . . . . . . . . . . . . . . . . . . . . . . . . . 3 . 1 2 . Piercing Weapon 1 | . . . . . . . . . . . 1 . . . . . . . . . . . . . . . . . . . Special Melee Weapon . | . . . . . . . . . . . . . . . . . . . . . . . . . . . . . . . Unidentified Prototypes 15 | . . . . 1 1 . . . . . . 2 . . . 2 1 3 . 1 . . . . . 2 . . 2 . Parts Lost 161 | . 2 2 3 2 1 . 22 6 8 . 5 16 13 2 . 4 1 . . 1 . . . 14 22 7 3 7 20 . Power 12 | . . . . . 1 . 1 1 . . . 2 1 . . . . . . . . . . 1 2 . . 1 2 . Propulsion 45 | . 1 . 2 . . . 8 2 4 . 2 4 4 . . 2 . . . . . . . 4 7 . . 1 4 . Utility 44 | . . . . . . . 4 1 . . 1 3 2 . . . . . . 1 . . . 6 11 4 2 3 6 . Weapon 60 | . 1 2 1 2 . . 9 2 4 . 2 7 6 2 . 2 1 . . . . . . 3 2 3 1 2 8 . Highest Loss Streak 12 | . 1 2 3 1 1 . 12 5 4 . 3 4 4 1 . 3 1 . . 1 . . . 9 4 3 2 4 11 . Average Slot Usage (%) 89 | . 99 99 99 99 100 100 99 89 77 76 71 91 97 99 99 99 99 89 88 88 89 89 89 86 90 88 85 85 71 . Engine 3 | . 14 14 11 3 . . . . 7 7 7 2 2 6 6 3 5 . . . . . . . . . . . . . Reactor 2 | . . . . . 6 11 6 . . . . . 1 . . 1 . 4 5 5 5 5 5 5 3 4 4 3 6 . Treads 14 | . 14 28 32 33 33 33 22 19 2 7 4 . 5 26 25 22 23 12 11 14 15 15 15 17 15 14 12 13 10 . Leg 1 | . . . . . . . . . . . 7 23 20 . . . . . . . . . . . . . . . . . Device 8 | . . . . . . . 7 5 7 7 1 5 18 11 6 16 13 11 11 10 10 10 10 9 11 9 7 14 10 . Storage 23 | . 26 28 33 33 33 33 31 32 30 30 30 23 20 20 20 17 17 17 17 19 21 21 21 21 19 18 13 13 10 . Processor 6 | . . . . . . . . 4 7 7 7 8 2 5 6 11 11 11 11 10 10 10 10 6 7 9 8 8 10 . Hackware 2 | . . . . . . . . . . . . . . 1 6 5 5 5 5 5 5 5 5 1 . 8 7 4 4 . Protection 4 | . 1 . . . . . 4 . . . 2 4 4 6 5 . 2 4 5 5 5 5 5 8 11 3 12 10 3 . Energy Cannon 2 | . . . . . . . 1 . . . . 5 10 7 19 16 12 . . . . . . . . . . . . . Ballistic Gun 15 | . 21 27 21 21 22 22 21 14 20 7 2 . 7 11 . . 3 16 17 14 15 15 15 14 18 17 17 16 15 . Naked Turns 146 | . . . . . . . . . . . . . . . . . . . . . . . . . . . . . 110 36 Heaviest Build 161 | 11 37 37 59 61 66 66 84 73 77 73 75 94 108 118 119 115 112 108 109 135 130 128 128 144 161 140 116 114 134 . Greatest Support 225 | 20 40 40 60 60 60 60 60 60 60 23 30 75 110 110 110 113 109 160 160 183 183 183 183 188 190 178 220 215 225 3 Greatest Overweight (x) 25 | . 3 . 1 1 1 1 1 1 25 3 4 2 1 1 1 1 1 . . . . . . . 1 . . . . . Average Overweight (x) 1 | . 1 . . . . 1 1 1 11 3 2 1 . . . . . . . . . . . . . . . . . . Largest Inventory Capacity 30 | 6 16 16 22 22 22 22 26 26 26 26 26 26 22 24 24 24 24 24 24 30 30 30 30 30 30 30 22 22 22 4 Average Capacity 25 | 5 12 16 21 22 22 22 25 26 26 26 26 24 22 23 24 24 24 24 24 28 30 30 30 30 30 28 22 22 19 4 Most Carried 30 | 4 16 16 22 22 22 22 26 21 26 24 24 26 22 24 24 24 24 24 24 30 30 30 30 30 30 30 22 22 22 4 Average Carried 24 | 1 11 14 18 21 21 22 23 19 24 24 23 23 20 23 23 23 23 23 23 28 29 30 30 27 28 28 21 21 17 4 Final Capacity 30 | 6 16 16 22 22 22 22 26 26 26 26 26 22 22 24 24 24 24 24 24 30 30 30 30 30 30 22 22 22 4 4 Final Carried 30 | 4 16 15 22 22 22 22 20 20 24 24 23 20 22 24 24 24 24 24 24 30 30 30 30 24 29 21 22 20 4 4 Class Distribution -------------------- 28% | Scavenger-Tank 20% | Scavenger-Skirmisher 14% | Hauler-Mutant 13% | Hauler-Gunner 8% | Scavenger-Mutant 4% | Scavenger-Gunner 4% | Mutant 3% | Hauler-Tank Dominant Class ---------------- Mutant | -10/Materials Mutant | -10/Mines Hauler-Mutant | -9/Materials Hauler-Mutant | -9/Storage Hauler-Mutant | -9/Garrison Hauler-Mutant | -9/Recycling Hauler-Tank | -7/Factory Hauler-Mutant | -7/Lower Caves Hauler-Gunner | -7/Lower Caves Hauler-Mutant | -7/Data Miner Hauler-Mutant | -6/Proximity Caves Hauler-Mutant | -6/Factory Scavenger-Tank | -6/Garrison Scavenger-Skirmisher | -6/Factory Scavenger-Tank | -6/Garrison Scavenger-Skirmisher | -5/Factory Scavenger-Skirmisher | -5/Extension Scavenger-Skirmisher | -5/Cetus Scavenger-Tank | -5/Archives Scavenger-Skirmisher | -4/Factory Scavenger-Skirmisher | -4/Upper Caves Scavenger-Skirmisher | -4/Upper Caves Scavenger-Skirmisher | -4/Warlord Scavenger-Tank | -3/Proximity Caves Scavenger-Tank | -3/Research Scavenger-Skirmisher | -3/Testing Scavenger-Tank | -2/Research Scavenger-Tank | -2/Quarantine Scavenger-Gunner | -1/Access Mutant | -1/Garrison Resources | -11 -10 -10 -9 -9 -9 -9 -7 -7 -7 -7 -6 -6 -6 -6 -6 -5 -5 -5 -5 -4 -4 -4 -4 -3 -3 -3 -2 -2 -1 -1 ----------- Run | Scr Mat Min Mat Sto Gar Rec Fac Low Low Dat Pro Fac Gar Fac Gar Fac Ext Cet Arc Fac Upp Upp War Pro Res Tes Res Qua Acc Gar Matter Collected 18759 | 221 306 40 373 781 200 . 1307 288 260 . 100 650 337 367 206 354 394 417 242 825 189 73 . 958 4788 1560 1250 771 1502 . Remotely 1847 | . . . . . . . . . . . . . . . . 10 . . . . . . . . 1837 . . . . . Salvage Created 26896 | . 687 205 538 1366 303 . 1701 180 136 . 214 1203 824 495 796 822 283 267 285 921 173 . . 1511 5236 2313 2601 1698 2138 . Parts 1294 | . 37 10 35 83 15 . 77 10 11 . 11 49 35 27 39 32 13 11 17 37 6 . . 60 299 85 126 74 95 . Haulers Intercepted 17 | . 2 . 1 3 . . 2 . . . . 1 . 1 . 1 . . . 1 . . . . 2 2 . . 1 . Recyclers Shooed 10 | . . . 1 2 . . 1 . . . . 1 . . . . 1 . . . . . . . 2 . . . 2 . Parts Field Recycled . | . . . . . . . . . . . . . . . . . . . . . . . . . . . . . . . Retrieved Matter . | . . . . . . . . . . . . . . . . . . . . . . . . . . . . . . . Parts Self-Destructed 71 | . . . . . . . . 8 11 . 16 . . . . . . . . . 6 . . 30 . . . . . . Prevented 25 | . . . . . . . . . . . . . . . . . . . . . . . . 25 . . . . . . Kills | -11 -10 -10 -9 -9 -9 -9 -7 -7 -7 -7 -6 -6 -6 -6 -6 -5 -5 -5 -5 -4 -4 -4 -4 -3 -3 -3 -2 -2 -1 -1 ------- Run | Scr Mat Min Mat Sto Gar Rec Fac Low Low Dat Pro Fac Gar Fac Gar Fac Ext Cet Arc Fac Upp Upp War Pro Res Tes Res Qua Acc Gar Combat Hostiles Destroyed 407 | . 15 3 12 26 9 . 30 5 7 . 5 18 13 7 19 12 4 5 2 11 2 . . 25 69 30 31 18 29 . Melee 5 | . . . . . . . . . . . 4 . . . . . . . . . . . . . 1 . . . . . Guns 314 | . 15 3 8 26 9 . 24 5 4 . 1 3 4 1 . . 2 5 2 11 2 . . 14 68 29 31 18 29 . Cannons 50 | . . . . . . . 5 . . . . 14 8 6 8 8 1 . . . . . . . . . . . . . AOE 31 | . . . 4 . . . . . 3 . . . . . 10 4 1 . . . . . . 9 . . . . . . Classes Destroyed 19 | . 3 1 3 . . . 3 . . . . 1 2 . 1 1 . . 1 . 1 . . 1 . . . 1 . . Worker 17 | . . . 1 . . . . . . . . 2 . . . 2 . . . 1 . . . . 5 3 1 1 1 . Builder 9 | . . . . . . . . . . . . 2 . . . 1 . . . 1 . . . . 2 2 . . 1 . Hauler 17 | . 2 . 1 3 . . 2 . . . . 1 . 1 . 1 . . . 1 . . . . 2 2 . . 1 . Recycler 6 | . . 1 1 . . . . . . . . 2 . . . . . . . . . . . . . . 1 1 . . Minesweeper 1 | . . . . . . . . . . . . . . . . . . . . . 1 . . . . . . . . . Mechanic 3 | . . . . . . . . . . . . . . . . 1 . . . . . . . . 1 . 1 . . . Operator 3 | . . . . . . . . . . . . . . . . . . . 3 . . . . . . . . . . . Watcher 5 | . . . . . . . 1 . . . . 1 . . . . . 1 . . . . . . . 1 . . 1 . Swarmer 84 | . 2 . 4 . 3 . 2 3 7 . 2 2 . . 10 4 1 2 . . . . . 14 8 5 4 . 11 . Saboteur 3 | . . . . . . . . . . . . . . . 2 . . . . . . . . . . 1 . . . . Grunt 168 | . 13 3 2 18 6 . 21 . . . 3 11 2 2 5 6 2 2 . 2 1 . . 3 19 12 15 9 11 . Brawler 15 | . . . 1 1 . . 1 . . . . . . 1 . . . . . . . . . 5 1 3 1 . 1 . Duelist 10 | . . . . . . . . . . . . . 2 1 . . . . . . . . . 1 3 2 1 . . . Protector 1 | . . . . . . . . . . . . . . . . . . . . . . . . 1 . . . . . . Sentry 46 | . . . 5 7 . . 2 1 . . . 2 5 1 1 2 1 . 2 5 . . . 1 6 . 3 . 2 . Specialist 3 | . . . . . . . . . . . . . . . . . . . . . . . . . . . . 3 . . Hunter 23 | . . . . . . . 1 . . . . 2 1 . . . . . . . . . . . 9 . 2 4 4 . Programmer 50 | . . . . . . . 3 1 . . . 1 2 2 . . . . . 4 1 . . . 23 6 5 2 . . Behemoth 2 | . . . . . . . . . . . . . 1 . 1 . . . . . . . . . . . . . . . Cetus Guard 1 | . . . . . . . . . . . . . . . . . . 1 . . . . . . . . . . . . Protovariant G 1 | . . . . . . . . . . . . . . . . . . . . . . . . . . 1 . . . . Decomposer 1 | . . . . . . . . . . . . . . . . . . . . . . . . 1 . . . . . . Butcher 1 | . . . . . . . . . . . . . . . . . 1 . . . . . . . . . . . . . Best Kill Streak 9 | . 3 4 5 5 3 . 5 3 3 . 2 4 3 2 8 7 2 4 3 3 2 . . 9 7 9 7 8 7 . Combat Bots Only 9 | . 3 3 4 5 3 . 5 3 3 . 2 4 3 2 8 4 2 2 2 2 1 . . 9 5 8 7 8 6 . Max Kills in Single Turn 5 | . 1 1 1 1 2 . 1 1 1 . 1 2 1 1 3 5 1 1 1 2 1 . . 3 3 2 3 2 2 . Gunslinging 2 | . . . . . 1 . . . . . . . . . . . . . . 1 . . . . 1 1 2 1 1 . Exploded 3 | . . . 1 . . . . . 1 . . . . . 3 3 1 . . . . . . 3 . . . . . . Melee 1 | . . . . . . . . . . . 1 . . . . . . . . . . . . . 1 . . . . . Uniques/NPCs Destroyed . | . . . . . . . . . . . . . . . . . . . . . . . . . . . . . . . Combat | -11 -10 -10 -9 -9 -9 -9 -7 -7 -7 -7 -6 -6 -6 -6 -6 -5 -5 -5 -5 -4 -4 -4 -4 -3 -3 -3 -2 -2 -1 -1 -------- Run | Scr Mat Min Mat Sto Gar Rec Fac Low Low Dat Pro Fac Gar Fac Gar Fac Ext Cet Arc Fac Upp Upp War Pro Res Tes Res Qua Acc Gar Damage Taken 41130 | . 744 363 621 1339 197 . 3747 643 813 . 525 2423 2021 229 382 997 266 522 376 1034 170 . . 3726 7401 2010 2865 1657 5929 130 Core 4330 | . 95 31 79 172 16 . 391 77 62 . 79 294 185 40 50 104 16 . 29 85 . . . 306 316 45 169 75 1484 130 Absorbed by Shields 1647 | . . . . . . . . . . . . 5 30 . . . 188 36 . . . . . . 196 . . 88 1104 . Reduced by Siege Mode 603 | . . . . . . . . . . . . . . . . . . . . . . . . 18 198 55 81 78 173 . Core Remaining (%) 59 | 100 . 49 . . . 33 . . . . 13 . . . 33 . . . 85 . . . . 66 . 72 . 83 . . Volleys Fired 1247 | . 78 14 44 102 24 . 104 18 23 . 5 75 48 16 32 37 16 22 16 56 9 . . 64 213 70 58 32 71 . Largest 5 | . 2 2 2 2 2 . 3 3 3 . 2 3 3 3 3 3 3 3 3 3 3 . . 3 4 4 4 4 5 . Hottest 294 | . 90 40 43 46 46 . 115 113 79 . 78 270 270 286 294 294 269 99 99 110 105 . . 103 145 145 145 145 173 . Shots Fired 3561 | . 155 27 82 204 47 . 302 47 49 . 7 189 131 45 74 82 26 65 46 157 27 . . 151 760 264 226 128 270 . Gun 3038 | . 155 27 76 204 47 . 283 47 44 . 7 42 55 14 . . 5 65 46 151 27 . . 131 733 263 224 128 264 . Cannon 466 | . . . . . . . 19 . . . . 147 76 30 63 79 16 . . 5 . . . . 26 1 2 . 2 . Launcher 48 | . . . 6 . . . . . 5 . . . . . 11 3 2 . . 1 . . . 20 . . . . . . Special 9 | . . . . . . . . . . . . . . 1 . . 3 . . . . . . . 1 . . . 4 . Kinetic 2986 | . 107 27 76 204 47 . 283 36 37 . 5 58 55 14 . . 5 65 46 151 27 . . 131 733 263 224 128 264 . Thermal 415 | . 24 . . . . . . 11 . . . 87 76 30 63 78 10 . . 5 . . . . 26 1 2 . 2 . Explosive 11 | . . . 6 . . . . . 5 . . . . . . . . . . . . . . . . . . . . . Electromagnetic 140 | . 24 . . . . . 19 . 7 . 2 44 . . 11 4 8 . . 1 . . . 20 . . . . . . Robot Hit Streak 67 | . 16 5 32 67 9 . 18 11 5 . 2 19 19 9 12 10 9 11 20 35 27 . . 20 47 33 36 27 22 . Robot Miss Streak 7 | . 3 2 1 2 3 . 4 4 4 . 2 7 3 3 3 2 1 4 2 3 3 . . 4 5 4 3 4 2 . Penetration Max 2 | . . . . . . . 1 . . . . . 1 . . . . 1 . 1 1 . . 1 2 2 2 2 2 . Secondary Targets 63 | . 1 1 . 2 3 . 6 1 1 . . . . . . . . . . 2 . . . 6 11 1 11 4 13 . Max Gunslinging Chain 2 | . 1 1 . 1 1 . 1 1 1 . . . . . . . . . . 1 . . . 1 1 1 2 1 1 . Shots Hit Robots 2499 | . 116 19 64 168 23 . 225 27 24 . 13 117 86 31 35 51 19 47 36 99 20 . . 99 529 189 175 94 193 . Core Hits 1061 | . 39 10 32 61 10 . 92 10 11 . 9 46 34 22 27 31 16 14 13 35 6 . . 64 182 72 79 56 90 . Critical Hits 280 | . . 1 . 2 . . 1 . . . . 3 1 . 1 1 . 5 4 9 5 . . 7 85 66 37 19 33 . Critical Kills 99 | . . 1 . . . . 1 . . . . 2 . . . . . 3 2 1 2 . . 1 31 19 16 9 11 . Critical Parts Destroyed 167 | . . . . 2 . . . . . . . 1 1 . 1 1 . 2 2 6 3 . . 6 47 47 18 10 20 . Melee Attacks 19 | . . . . . . . . . . . 10 . . . . . . . . . . . . . . 6 . 1 2 . Impact . | . . . . . . . . . . . . . . . . . . . . . . . . . . . . . . . Slashing 9 | . . . . . . . . . . . . . . . . . . . . . . . . . . 6 . 1 2 . Piercing 10 | . . . . . . . . . . . 10 . . . . . . . . . . . . . . . . . . . Sneak Attacks . | . . . . . . . . . . . . . . . . . . . . . . . . . . . . . . . Combat Hostiles . | . . . . . . . . . . . . . . . . . . . . . . . . . . . . . . . Follow-up Attacks . | . . . . . . . . . . . . . . . . . . . . . . . . . . . . . . . Damage Inflicted 59914 | . 1157 168 850 2281 354 19 3644 503 625 . 283 3749 2795 1021 1479 2021 784 1071 870 2939 559 . . 3509 12364 5379 4069 2731 4690 . Guns 47125 | . 1085 168 603 2178 354 . 3085 501 378 . 49 721 921 248 . . 68 1071 870 2902 559 . . 2433 12217 5355 3991 2731 4637 . Cannons 9123 | . . . . . . . 552 . . . . 2911 1874 773 855 1706 452 . . . . . . . . . . . . . Explosions 3002 | . 72 . 233 57 . . . . 247 . . 77 . . 624 309 264 . . 37 . . . 1044 38 . . . . . Melee 234 | . . . . . . . . . . . 234 . . . . . . . . . . . . . . . . . . . Ramming 430 | . . . 14 46 . 19 7 2 . . . 40 . . . 6 . . . . . . . 32 109 24 78 . 53 . Kinetic 47009 | . 614 168 603 2178 354 . 3085 395 327 . 31 1251 921 248 . . 68 1071 870 2902 559 . . 2433 12217 5355 3991 2731 4637 . Thermal 7569 | . 287 . . . . . . 106 . . . 1389 1874 773 855 1869 381 . . . . . . 35 . . . . . . Explosive 575 | . . . 233 57 . . . . 247 . . . . . . . . . . . . . . . 38 . . . . . Electromagnetic 4097 | . 256 . . . . . 552 . 51 . 18 1069 . . 624 146 335 . . 37 . . . 1009 . . . . . . Impact . | . . . . . . . . . . . . . . . . . . . . . . . . . . . . . . . Slashing . | . . . . . . . . . . . . . . . . . . . . . . . . . . . . . . . Piercing 234 | . . . . . . . . . . . 234 . . . . . . . . . . . . . . . . . . . Highest Corruption 16 | . 1 1 . . . . 7 7 6 . . . 1 2 2 4 4 4 4 3 3 . . 16 12 7 4 5 8 8 Average Corruption 4 | . 1 1 . . . . 5 6 3 . . . 1 1 2 4 4 4 2 1 2 . . 10 3 6 3 4 6 8 Corruption Purged 45 | . . . . . . . . 1 6 . . . . . . . . . 4 . 3 . . 12 19 . . . . . Effects 446 | . 1 2 . . . . 31 30 22 . . . 4 5 16 1 28 12 11 14 16 . . 63 89 50 15 21 14 1 Message Errors 98 | . . 1 . . . . 4 10 7 . . . 1 4 6 . 8 2 3 1 6 . . 10 22 7 1 3 1 1 Matter Fused 77 | . . . . . . . 3 5 6 . . . . . . . 8 2 2 3 5 . . 10 18 8 2 4 1 . Heat Flow Errors 40 | . . . . . . . 2 5 3 . . . . . 1 . 2 1 1 . 2 . . 5 4 7 1 5 1 . Energy Discharges 40 | . . . . . . . 3 1 . . . . 1 . 4 . 5 2 1 3 2 . . 5 6 3 1 1 2 . Parts Rejected 3 | . . . . . . . . . . . . . . . . . 1 . . . . . . 1 . 1 . . . . Data Loss (minor) 39 | . . . . . . . 1 2 2 . . . 1 1 1 1 1 3 . 3 1 . . 7 9 3 2 . 1 . Data Loss (major) 8 | . . . . . . . 2 1 2 . . . . . . . . . . . . . . . 1 2 . . . . Misfires 10 | . . . . . . . . 1 . . . . . . . . . . . . . . . 2 2 3 . 1 1 . Misdirections 8 | . . . . . . . . . . . . . . . . . . . . . . . . 7 1 . . . . . Targeting Errors 99 | . 1 . . . . . 12 4 2 . . . 1 . 4 . 3 1 2 3 . . . 13 22 12 8 6 5 . Weapon Failures 24 | . . 1 . . . . 4 1 . . . . . . . . . 1 2 1 . . . 3 4 4 . 1 2 . Overload Shots . | . . . . . . . . . . . . . . . . . . . . . . . . . . . . . . . Overflow Damage 400 | . . . . . . . 17 . 26 . . 216 14 52 9 11 25 . . . . . . . 6 . 24 . . . Projectiles 266 | . . . . . . . 17 . . . . 147 14 52 . 11 25 . . . . . . . . . . . . . Explosions 95 | . . . . . . . . . 26 . . 60 . . 9 . . . . . . . . . . . . . . . Melee 39 | . . . . . . . . . . . . 9 . . . . . . . . . . . . 6 . 24 . . . Knockbacks 24 | . . . 1 . . . . . . . . 22 . . . . . . . . . . . . 1 . . . . . Impact 3 | . . . 1 . . . . . . . . 1 . . . . . . . . . . . . 1 . . . . . Kinetic 17 | . . . . . . . . . . . . 17 . . . . . . . . . . . . . . . . . . Secondary 4 | . . . . . . . . . . . . 4 . . . . . . . . . . . . . . . . . . Self-Inflicted Damage 262 | . 13 . . 36 . . . . 98 . . 83 . . . . . . . 14 . . . . . . . . 18 . Shots 8 | . 1 . . 1 . . . . 4 . . 1 . . . . . . . 1 . . . . . . . . . . Rammed 34 | . . . 3 7 . 1 2 1 . . . 1 . . . . . . . . . . . . 4 . 2 . 13 . Targets Rammed 40 | . . . 3 7 . 1 2 1 . . . 3 . . . 1 . . . . . . . 1 5 1 2 . 13 . Kicked 2 | . . . . . . . . . . . . 2 . . . . . . . . . . . . . . . . . . Crushed 4 | . . . . . . . . . . . . . . . . 1 . . . . . . . 1 1 1 . . . . Highest Temperature 522 | . 308 36 14 26 14 . 283 264 272 . 31 470 274 396 522 175 243 101 209 158 255 . . 190 422 256 203 202 519 . Average Temperature 80 | . 80 18 6 6 5 . 65 57 82 . 14 143 68 127 180 39 51 34 30 38 92 . . 51 82 58 53 96 127 . Received Heat Transfer 6634 | . 384 213 171 528 72 . 1506 36 . . 81 726 483 51 90 429 16 27 45 84 12 . . 75 570 300 369 99 267 . Effects 26 | . . . . . . . . . . . . 7 . 1 6 . . . 2 . . . . . 3 . . . 7 . Shutdowns 7 | . . . . . . . . . . . . 2 . . 1 . . . . . . . . . . . . . 4 . Energy Bleed 5 | . . . . . . . . . . . . 1 . 1 2 . . . . . . . . . 1 . . . . . Interference 9 | . . . . . . . . . . . . 2 . . 2 . . . 2 . . . . . 2 . . . 1 . Matter Decay 2 | . . . . . . . . . . . . 1 . . . . . . . . . . . . . . . . 1 . Short Circuit 1 | . . . . . . . . . . . . . . . 1 . . . . . . . . . . . . . . . Damage (minor) 1 | . . . . . . . . . . . . 1 . . . . . . . . . . . . . . . . . . Damage (core) 1 | . . . . . . . . . . . . . . . . . . . . . . . . . . . . . 1 . Siege Activations 26 | . . . . . . . . . . . . . . . . . . . . . . . . 2 10 1 5 2 6 . Total Turns 717 | . . . . . . . . . . . . . . . . . . . . . . . . 25 434 28 92 48 90 . Longest Duration 94 | . . . . . . . . . . . . . . . . . . . . . . . . 17 94 28 24 27 28 . Robots Corrupted 6 | . . . . . . . 1 . . . . 2 . . 1 . . . . . . . . 2 . . . . . . Combat Hostiles 5 | . . . . . . . 1 . . . . 1 . . 1 . . . . . . . . 2 . . . . . . Parts Fried 25 | . 1 . . . . . 6 . . . . 7 . . 5 1 1 . . . . . . 4 . . . . . . Impact Corruptions 4 | . . . . . . . . . . . . 1 . . . . . . . . . . . . 1 . 2 . . . Robots Melted 1 | . . . . . . . . . . . . . 1 . . . . . . . . . . . . . . . . . Combat Hostiles 1 | . . . . . . . . . . . . . 1 . . . . . . . . . . . . . . . . . Parts Melted 18 | . 1 . . . . . . . . . . . 9 2 2 3 . . . . . . . 1 . . . . . . Heat Transferred 10063 | . 729 . . . . . . 222 . . . 2136 2700 870 888 1931 487 . . . . . . 100 . . . . . . Parts Sabotaged 3 | . . . . . . . . . . . . . . . 3 . . . . . . . . . . . . . . . Parts Stolen . | . . . . . . . . . . . . . . . . . . . . . . . . . . . . . . . Parts Stripped . | . . . . . . . . . . . . . . . . . . . . . . . . . . . . . . . Power Chain Reactions 9 | . 1 . . . . . . . . . . 1 . . 1 2 1 . . . . . . 3 . . . . . . Missiles Intercepted . | . . . . . . . . . . . . . . . . . . . . . . . . . . . . . . . Alert | -11 -10 -10 -9 -9 -9 -9 -7 -7 -7 -7 -6 -6 -6 -6 -6 -5 -5 -5 -5 -4 -4 -4 -4 -3 -3 -3 -2 -2 -1 -1 ------- Run | Scr Mat Min Mat Sto Gar Rec Fac Low Low Dat Pro Fac Gar Fac Gar Fac Ext Cet Arc Fac Upp Upp War Pro Res Tes Res Qua Acc Gar Peak Influence 1261 | . 214 159 251 437 569 540 1261 . . . . 404 580 442 834 643 883 942 554 261 . . . . 1247 1234 1187 870 1139 815 Initial 1126 | . . 79 61 42 284 255 1126 . . . . 37 282 304 237 437 243 494 334 16 . . . . 8 701 630 582 489 815 Average 453 | . 95 143 158 310 432 318 1085 . . . . 177 435 288 596 477 208 661 275 171 . . . . 447 835 835 743 804 815 Maximum Alert Level 4 | . 1 . 1 2 2 2 4 . . . . 2 2 2 3 2 3 3 2 1 . . . . 4 4 4 3 4 3 Low Security (%) 27 | 100 93 100 77 9 . . . . . . . 46 . 22 . . 54 . 30 49 . . . . 37 . . . . . Level 1 27 | . 6 . 22 66 44 78 . . . . . 52 40 73 23 13 41 . 47 50 . . . . 16 . . . . . Level 2 18 | . . . . 23 55 21 . . . . . . 59 4 38 86 . 64 22 . . . . . 17 6 17 27 16 . Level 3 22 | . . . . . . . 63 . . . . . . . 37 . 3 35 . . . . . . 23 79 77 72 82 100 Level 4 4 | . . . . . . . 36 . . . . . . . . . . . . . . . . . 5 14 5 . 1 . Level 5 . | . . . . . . . . . . . . . . . . . . . . . . . . . . . . . . . High Security . | . . . . . . . . . . . . . . . . . . . . . . . . . . . . . . . Max Security . | . . . . . . . . . . . . . . . . . . . . . . . . . . . . . . . Squads Dispatched 87 | . 8 . . 5 . . 11 . . . . 8 . 3 . 4 3 . . 6 . . . 1 16 8 3 4 7 . Investigation 12 | . 2 . . . . . . . . . . 3 . . . . 1 . . 1 . . . . 1 . . 1 3 . Extermination 22 | . . . . . . . 2 . . . . 2 . 2 . 1 . . . 2 . . . . 8 2 1 1 1 . Reinforcement 24 | . 6 . . 3 . . 3 . . . . 1 . 1 . 2 2 . . 1 . . . . 2 1 . 1 1 . Assault 20 | . . . . 2 . . 3 . . . . . . . . 1 . . . . . . . 1 4 5 2 . 2 . Garrison 9 | . . . . . . . 3 . . . . 2 . . . . . . . 2 . . . . 1 . . 1 . . Intercept . | . . . . . . . . . . . . . . . . . . . . . . . . . . . . . . . Construction Impeded 5 | . . . . . . . 1 . . . . 1 . . . 1 2 . . . . . . . . . . . . . Haulers Reinforced 6 | . . . . . . . 1 . . . . . . . . 1 . . . 1 . . . . 1 1 . . 1 . Stealth | -11 -10 -10 -9 -9 -9 -9 -7 -7 -7 -7 -6 -6 -6 -6 -6 -5 -5 -5 -5 -4 -4 -4 -4 -3 -3 -3 -2 -2 -1 -1 --------- Run | Scr Mat Min Mat Sto Gar Rec Fac Low Low Dat Pro Fac Gar Fac Gar Fac Ext Cet Arc Fac Upp Upp War Pro Res Tes Res Qua Acc Gar Distress Signals 31 | . . . . 6 . . 1 . . . . . . . . . 3 . . . . . . . 7 4 1 . 9 . Communications Jammed . | . . . . . . . . . . . . . . . . . . . . . . . . . . . . . . . Distress Signals . | . . . . . . . . . . . . . . . . . . . . . . . . . . . . . . . Times Spotted 694 | . 35 5 21 46 10 5 49 5 15 . 9 37 16 13 20 23 37 18 10 16 2 . . 29 93 49 34 25 64 8 Peak Tracking Total 24 | . 4 3 4 5 3 2 9 3 4 . 4 5 4 3 7 5 11 6 1 3 1 . . 9 6 15 6 9 24 8 Tactical Retreats 56 | . 6 1 . 1 1 . 2 . 9 . 2 9 3 . 1 2 1 . . . . . . 3 6 3 . . 6 . Traps | -11 -10 -10 -9 -9 -9 -9 -7 -7 -7 -7 -6 -6 -6 -6 -6 -5 -5 -5 -5 -4 -4 -4 -4 -3 -3 -3 -2 -2 -1 -1 ------- Run | Scr Mat Min Mat Sto Gar Rec Fac Low Low Dat Pro Fac Gar Fac Gar Fac Ext Cet Arc Fac Upp Upp War Pro Res Tes Res Qua Acc Gar Traps Triggered 39 | . 2 . . . 2 . 1 . . . . 5 5 1 5 1 1 . . 4 . . . . 2 3 4 2 1 . Indirectly . | . . . . . . . . . . . . . . . . . . . . . . . . . . . . . . . Trap Hack Attempts . | . . . . . . . . . . . . . . . . . . . . . . . . . . . . . . . Triggered . | . . . . . . . . . . . . . . . . . . . . . . . . . . . . . . . Disarmed 4 | . . . . 3 . . . . . . . . . . . . 1 . . . . . . . . . . . . . Reprogrammed . | . . . . . . . . . . . . . . . . . . . . . . . . . . . . . . . Reused . | . . . . . . . . . . . . . . . . . . . . . . . . . . . . . . . Traps Extracted . | . . . . . . . . . . . . . . . . . . . . . . . . . . . . . . . Installed . | . . . . . . . . . . . . . . . . . . . . . . . . . . . . . . . Triggered 1 | . 1 . . . . . . . . . . . . . . . . . . . . . . . . . . . . . Machines | -11 -10 -10 -9 -9 -9 -9 -7 -7 -7 -7 -6 -6 -6 -6 -6 -5 -5 -5 -5 -4 -4 -4 -4 -3 -3 -3 -2 -2 -1 -1 ---------- Run | Scr Mat Min Mat Sto Gar Rec Fac Low Low Dat Pro Fac Gar Fac Gar Fac Ext Cet Arc Fac Upp Upp War Pro Res Tes Res Qua Acc Gar Machines Disabled 45 | . . . 1 2 2 . . . . . . 2 1 5 3 . 4 2 5 3 . . . 1 6 5 1 2 . . Max in Single Turn 2 | . . . 1 2 1 . . . . . . 1 1 2 1 . 1 1 1 1 . . . 1 1 1 1 1 . . Garrison Access 7 | . . . . . . . 1 . . . . . . . . . . . . 1 . . . . 3 1 . . 1 . Garrison Relay 6 | . . . . . 2 . . . . . . . 1 . 3 . . . . . . . . . . . . . . . Machines Sabotaged . | . . . . . . . . . . . . . . . . . . . . . . . . . . . . . . . Garrisons Compromised . | . . . . . . . . . . . . . . . . . . . . . . . . . . . . . . . Overloaded Fab Kills . | . . . . . . . . . . . . . . . . . . . . . . . . . . . . . . . Fab Network Shutdowns . | . . . . . . . . . . . . . . . . . . . . . . . . . . . . . . . Hacking | -11 -10 -10 -9 -9 -9 -9 -7 -7 -7 -7 -6 -6 -6 -6 -6 -5 -5 -5 -5 -4 -4 -4 -4 -3 -3 -3 -2 -2 -1 -1 --------- Run | Scr Mat Min Mat Sto Gar Rec Fac Low Low Dat Pro Fac Gar Fac Gar Fac Ext Cet Arc Fac Upp Upp War Pro Res Tes Res Qua Acc Gar Machines Accessed 73 | . 1 . 3 8 . . 3 1 3 4 . 4 . 2 . 4 6 1 . 7 3 . . . 11 6 . 2 4 . Terminals 43 | . 1 . 2 7 . . 1 . 1 . . 3 . 1 . 4 5 1 . 5 . . . . 4 4 . 2 2 . Fabricators 2 | . . . . . . . 1 . . . . . . . . . . . . . . . . . 1 . . . . . Repair Stations . | . . . . . . . . . . . . . . . . . . . . . . . . . . . . . . . Recycling Units 4 | . . . 1 . . . . . . . . . . . . . 1 . . 1 . . . . 1 . . . . . Scanalyzers 3 | . . . . . . . . . . . . . . . . . . . . . . . . . 2 1 . . . . Garrison Access 11 | . . . . 1 . . 1 . . . . 1 . 1 . . . . . 1 . . . . 3 1 . . 2 . Total Hacks 186 | . 2 . 9 22 . . 6 1 5 29 . 9 . 3 . 6 17 3 . 16 11 . . . 20 15 . 4 8 . Successful 118 | . 1 . 6 14 . . 5 1 5 29 . 6 . 1 . 1 5 1 . 10 11 . . . 9 9 . 1 3 . Failed 68 | . 1 . 3 8 . . 1 . . . . 3 . 2 . 5 12 2 . 6 . . . . 11 6 . 3 5 . Catastrophic 12 | . 1 . . 1 . . . . . . . 1 . . . 4 . 1 . . . . . . 2 . . . 2 . Database Lockouts . | . . . . . . . . . . . . . . . . . . . . . . . . . . . . . . . Manual 68 | . 2 . 6 8 . . 3 . . . . 5 . 2 . 6 6 1 . 11 . . . . 6 9 . 2 1 . Terminals 109 | . 2 . 8 21 . . 3 . 1 . . 8 . 2 . 6 15 3 . 13 . . . . 6 12 . 4 5 . Fabricators 3 | . . . . . . . 1 . . . . . . . . . . . . . . . . . 2 . . . . . Repair Stations . | . . . . . . . . . . . . . . . . . . . . . . . . . . . . . . . Recycling Units 5 | . . . 1 . . . . . . . . . . . . . 2 . . 1 . . . . 1 . . . . . Scanalyzers 6 | . . . . . . . . . . . . . . . . . . . . . . . . . 5 1 . . . . Garrison Access 18 | . . . . 1 . . 2 . . . . 1 . 1 . . . . . 2 . . . . 6 2 . . 3 . Terminal Hacks 70 | . . . 2 10 . . 1 1 5 29 . 2 . . . . 3 1 . 1 11 . . . . 3 . 1 . . Record 25 | . . . . . . . . . 4 11 . . . . . . . . . . 9 . . . . 1 . . . . Part Schematic 8 | . . . . 1 . . . . . 7 . . . . . . . . . . . . . . . . . . . . Robot Schematic 8 | . . . . . . . . . . 8 . . . . . . . . . . . . . . . . . . . . Robot Analysis 1 | . . . 1 . . . . . . . . . . . . . . . . . . . . . . . . . . . Prototype ID Bank 4 | . . . . 1 . . . . . 3 . . . . . . . . . . . . . . . . . . . . Open Door 8 | . . . . 3 . . . 1 1 . . . . . . . . 1 . . 2 . . . . . . . . . Branch Access Points 3 | . . . 1 . . . 1 . . . . . . . . . . . . 1 . . . . . . . . . . Fabricator Index 1 | . . . . . . . . . . . . 1 . . . . . . . . . . . . . . . . . . Unreport Threat 2 | . . . . . . . . . . . . . . . . . 2 . . . . . . . . . . . . . Disarm Traps 4 | . . . . 3 . . . . . . . . . . . . 1 . . . . . . . . . . . . . Zone Layout 6 | . . . . 2 . . . . . . . 1 . . . . . . . . . . . . . 2 . 1 . . Fabricator Hacks 1 | . . . . . . . 1 . . . . . . . . . . . . . . . . . . . . . . . Build 1 | . . . . . . . 1 . . . . . . . . . . . . . . . . . . . . . . . Repair Station Hacks . | . . . . . . . . . . . . . . . . . . . . . . . . . . . . . . . Recycling Unit Hacks 4 | . . . 1 . . . . . . . . . . . . . 1 . . 1 . . . . 1 . . . . . Report Inventory 4 | . . . 1 . . . . . . . . . . . . . 1 . . 1 . . . . 1 . . . . . Scanalyzer 3 | . . . . . . . . . . . . . . . . . . . . . . . . . 2 1 . . . . Insert Component 3 | . . . . . . . . . . . . . . . . . . . . . . . . . 2 1 . . . . Garrison Access Hacks 18 | . . . . 1 . . 2 . . . . 1 . 1 . . . . . 2 . . . . 6 2 . . 3 . Unlock Access 4 | . . . . 1 . . . . . . . 1 . 1 . . . . . . . . . . . . . . 1 . Seal Access 7 | . . . . . . . 1 . . . . . . . . . . . . 1 . . . . 3 1 . . 1 . Coupler Status 7 | . . . . . . . 1 . . . . . . . . . . . . 1 . . . . 3 1 . . 1 . Unauthorized Hacks 22 | . 1 . 3 3 . . 1 . . . . 3 . . . 1 1 . . 6 . . . . . 3 . . . . Terminals 22 | . 1 . 3 3 . . 1 . . . . 3 . . . 1 1 . . 6 . . . . . 3 . . . . Track 3 | . . . 1 1 . . . . . . . 1 . . . . . . . . . . . . . . . . . . Assimilate 1 | . . . . 1 . . . . . . . . . . . . . . . . . . . . . . . . . . Botnet 17 | . 1 . 2 1 . . 1 . . . . 2 . . . 1 1 . . 5 . . . . . 3 . . . . Operators 1 | . . . . . . . . . . . . . . . . . . . . 1 . . . . . . . . . . Fabricators . | . . . . . . . . . . . . . . . . . . . . . . . . . . . . . . . Repair Stations . | . . . . . . . . . . . . . . . . . . . . . . . . . . . . . . . Recycling Units . | . . . . . . . . . . . . . . . . . . . . . . . . . . . . . . . Scanalyzers . | . . . . . . . . . . . . . . . . . . . . . . . . . . . . . . . Garrison Access . | . . . . . . . . . . . . . . . . . . . . . . . . . . . . . . . Data Cores Recovered 1 | . . . . . . . . . . . . . . . . . 1 . . . . . . . . . . . . . Used . | . . . . . . . . . . . . . . . . . . . . . . . . . . . . . . . Hacking Detections 46 | . 1 . 2 5 . . 2 . . . . 3 . 1 . 4 5 1 . 4 . . . . 7 6 . 1 4 . Full Trace Events 6 | . . . 1 . . . . . . . . 1 . . . . 1 . . . . . . . 1 . . . 2 . Feedback Events 1 | . . . . . . . . . . . . . . . . . . . . . . . . . . . . . 1 . Corruption 1 | . . . . . . . . . . . . . . . . . . . . . . . . . . . . . 1 . Feedback Blocked . | . . . . . . . . . . . . . . . . . . . . . . . . . . . . . . . Robot Schematics Acquired 8 | . . . . . . . . . . 8 . . . . . . . . . . . . . . . . . . . . Robots Built 4 | . . . . . . . 4 . . . . . . . . . . . . . . . . . . . . . . . Matter 252 | . . . . . . . 252 . . . . . . . . . . . . . . . . . . . . . . . Time 134 | . . . . . . . 134 . . . . . . . . . . . . . . . . . . . . . . . Total Robot Build Rating 16 | . . . . . . . 16 . . . . . . . . . . . . . . . . . . . . . . . Part Schematics Acquired 8 | . . . . 1 . . . . . 7 . . . . . . . . . . . . . . . . . . . . Parts Built . | . . . . . . . . . . . . . . . . . . . . . . . . . . . . . . . Matter . | . . . . . . . . . . . . . . . . . . . . . . . . . . . . . . . Time . | . . . . . . . . . . . . . . . . . . . . . . . . . . . . . . . Total Part Build Rating . | . . . . . . . . . . . . . . . . . . . . . . . . . . . . . . . Parts Repaired . | . . . . . . . . . . . . . . . . . . . . . . . . . . . . . . . Time . | . . . . . . . . . . . . . . . . . . . . . . . . . . . . . . . Parts Recycled . | . . . . . . . . . . . . . . . . . . . . . . . . . . . . . . . Recycled Matter . | . . . . . . . . . . . . . . . . . . . . . . . . . . . . . . . Retrieved Matter . | . . . . . . . . . . . . . . . . . . . . . . . . . . . . . . . Retrieved Components . | . . . . . . . . . . . . . . . . . . . . . . . . . . . . . . . Parts Scanalyzed . | . . . . . . . . . . . . . . . . . . . . . . . . . . . . . . . Part Schematics Acquired . | . . . . . . . . . . . . . . . . . . . . . . . . . . . . . . . Parts Damaged . | . . . . . . . . . . . . . . . . . . . . . . . . . . . . . . . Bothacking | -11 -10 -10 -9 -9 -9 -9 -7 -7 -7 -7 -6 -6 -6 -6 -6 -5 -5 -5 -5 -4 -4 -4 -4 -3 -3 -3 -2 -2 -1 -1 ------------ Run | Scr Mat Min Mat Sto Gar Rec Fac Low Low Dat Pro Fac Gar Fac Gar Fac Ext Cet Arc Fac Upp Upp War Pro Res Tes Res Qua Acc Gar Used RIF Installer 4 | . . . . . 1 . . . . . . . 1 . 1 . . . . . . . . . . . . . . 1 Hotswap 1 | . . . . . . . . . . . . . 1 . . . . . . . . . . . . . . . . . Signal Jammer 1 | . . . . . . . . . . . . . . . . . . . . . . . . . . . . . . 1 Patrol Navigation 1 | . . . . . . . . . . . . . . . 1 . . . . . . . . . . . . . . . Robots Hacked 4 | . . . . . . . . . . . . . . 1 . . 1 . . . . . . . . . . . 2 . Non-combat 3 | . . . . . . . . . . . . . . 1 . . . . . . . . . . . . . . 2 . Combat 1 | . . . . . . . . . . . . . . . . . 1 . . . . . . . . . . . . . Robot Hacks Applied 4 | . . . . . . . . . . . . . . 1 . . 1 . . . . . . . . . . . 2 . map_route 3 | . . . . . . . . . . . . . . 1 . . . . . . . . . . . . . . 2 . streamctrl_high 1 | . . . . . . . . . . . . . . . . . 1 . . . . . . . . . . . . . Relay Couplers Released 33 | . . . . . 9 . . . . . . . 4 . 13 . . . . 2 . . . . 2 . . . 3 . Machine Destruction 33 | . . . . . 9 . . . . . . . 4 . 13 . . . . 2 . . . . 2 . . . 3 . Attached 5 | . . . . . . . . . . . . . . 1 1 . 1 . . . . . . . 1 . . . 1 . Robots Rewired 6 | . . . . . . . . . . . . . . . . . 4 . . . . . . 2 . . . . . . Allies Hacked . | . . . . . . . . . . . . . . . . . . . . . . . . . . . . . . . Hacks Repelled . | . . . . . . . . . . . . . . . . . . . . . . . . . . . . . . . Allies | -11 -10 -10 -9 -9 -9 -9 -7 -7 -7 -7 -6 -6 -6 -6 -6 -5 -5 -5 -5 -4 -4 -4 -4 -3 -3 -3 -2 -2 -1 -1 -------- Run | Scr Mat Min Mat Sto Gar Rec Fac Low Low Dat Pro Fac Gar Fac Gar Fac Ext Cet Arc Fac Upp Upp War Pro Res Tes Res Qua Acc Gar Total Allies 40 | . . . . 3 . . 4 . . . 1 . . . . . 22 5 . . . . . 2 3 . . . . . Largest Group 18 | . . . . 2 . . 4 . . . 1 . . . . . 18 13 4 3 . . . 2 3 . . . . . Highest-Rated Group 663 | . . . . 62 . . 48 . . . 94 . . . . . 663 521 314 282 . . . 94 133 . . . . . Highest-Rated Ally 156 | . . . . 31 . . 12 . . . 94 . . . . . 156 143 94 94 . . . 47 46 . . . . . Total Orders . | . . . . . . . . . . . . . . . . . . . . . . . . . . . . . . . Ally Attacks 379 | . . . . 10 . . 13 . . . 17 . . . . . 163 99 11 24 . . . 9 33 . . . . . Total Damage 8561 | . . . . 191 . . 144 . . . 558 . . . . . 3614 2073 326 665 . . . 162 828 . . . . . Kills 66 | . . . . 4 . . 1 . . . 4 . . . . . 33 16 2 4 . . . 1 1 . . . . . Allies Corrupted . | . . . . . . . . . . . . . . . . . . . . . . . . . . . . . . . Allies Melted . | . . . . . . . . . . . . . . . . . . . . . . . . . . . . . . . Intel | -11 -10 -10 -9 -9 -9 -9 -7 -7 -7 -7 -6 -6 -6 -6 -6 -5 -5 -5 -5 -4 -4 -4 -4 -3 -3 -3 -2 -2 -1 -1 ------- Run | Scr Mat Min Mat Sto Gar Rec Fac Low Low Dat Pro Fac Gar Fac Gar Fac Ext Cet Arc Fac Upp Upp War Pro Res Tes Res Qua Acc Gar Robot Analysis Total 1 | . . . 1 . . . . . . . . . . . . . . . . . . . . . . . . . . . Derelict Logs Recovered 9 | . . 1 . . . . . 1 3 . 1 . . . . . . . . . 2 1 . . . . . . . . Drone Launches . | . . . . . . . . . . . . . . . . . . . . . . . . . . . . . . . Drone Recoveries . | . . . . . . . . . . . . . . . . . . . . . . . . . . . . . . . Exploration | -11 -10 -10 -9 -9 -9 -9 -7 -7 -7 -7 -6 -6 -6 -6 -6 -5 -5 -5 -5 -4 -4 -4 -4 -3 -3 -3 -2 -2 -1 -1 ------------- Run | Scr Mat Min Mat Sto Gar Rec Fac Low Low Dat Pro Fac Gar Fac Gar Fac Ext Cet Arc Fac Upp Upp War Pro Res Tes Res Qua Acc Gar Turns Passed 35473 | 53 1193 155 844 1475 685 288 1760 805 6135 187 735 1374 708 946 1010 893 1425 523 1735 1483 1197 583 60 1483 4225 1248 898 508 823 36 Spaces Moved 14658 | 41 667 71 405 554 343 159 739 404 1003 86 343 619 312 513 478 419 740 242 315 792 719 357 38 769 1717 575 444 265 488 41 Core 626 | 3 . . . . . . . . 388 . . . . . . . . . . . . . . . . . . . 194 41 Treads 12246 | 2 227 71 405 554 343 159 739 404 363 86 169 . 72 513 478 419 740 242 315 792 719 357 38 769 1717 575 444 265 269 . Legs 1033 | . . . . . . . . . . . 174 619 240 . . . . . . . . . . . . . . . . . Wheels 728 | 36 440 . . . . . . . 252 . . . . . . . . . . . . . . . . . . . . . Hover . | . . . . . . . . . . . . . . . . . . . . . . . . . . . . . . . Flight 25 | . . . . . . . . . . . . . . . . . . . . . . . . . . . . . 25 . Fastest Speed 40 | 50 90 160 160 160 160 180 180 180 140 220 180 120 150 160 160 160 160 160 160 160 160 160 160 160 155 160 145 145 40 50 Average Speed 190 | 99 126 160 160 161 171 180 180 180 603 220 200 155 152 164 179 163 161 160 160 160 160 160 160 160 161 165 145 145 101 50 Slowest Speed 1300 | 160 180 160 180 180 180 180 180 180 1300 220 240 180 160 180 180 180 180 160 160 160 160 160 160 160 180 166 155 145 145 50 Overloaded Moves . | . . . . . . . . . . . . . . . . . . . . . . . . . . . . . . . Propulsion Burnouts . | . . . . . . . . . . . . . . . . . . . . . . . . . . . . . . . Robots Hopped 3 | . . . . . . . . . . . . . . . . . . . . . . . . . . . . . 3 . Cave-ins Triggered . | . . . . . . . . . . . . . . . . . . . . . . . . . . . . . . . Exploration Rate (%) 49 | 4 97 13 32 90 44 51 18 68 97 70 61 18 52 15 62 14 89 81 96 26 85 62 8 79 50 73 15 29 21 8 Regions Visited 30 Branch Regions 16 Pre-discovered Areas 2 | . . . . . . . . . 1 1 . . . . . . . . . . . . . . . . . . . . Known Exits Taken 20 | . . . 1 1 . . 1 1 . . . 1 . 1 . 1 1 1 1 1 1 1 1 1 1 1 1 1 1 . Unknown Exits Taken 7 | 1 1 1 . . . 1 . . 1 1 1 . . . . . . . . . . . . . . . . . . . Scrap Searched 10 | . . . . . . . . 3 5 . . . . . . . . . . . 1 1 . . . . . . . . Spaces Dug 36 | . . . . . . . . . . . . . . . . 8 . . . 5 . . . . 18 3 2 . . . Terrain Destroyed 450 | . 3 . 9 23 . . . 2 26 . . 43 4 46 8 32 6 12 6 31 9 . . 76 84 4 4 3 19 . Melee 2 | . . . . . . . . . . . . . . . . . . . . . . . . . . 2 . . . . Projectile 262 | . . . . . . . . 2 . . . 40 4 9 7 25 2 12 6 31 9 . . 39 48 2 4 3 19 . AOE 186 | . 3 . 9 23 . . . . 26 . . 3 . 37 1 7 4 . . . . . . 37 36 . . . . . Terrain Rammed . | . . . . . . . . . . . . . . . . . . . . . . . . . . . . . . . Walls Destroyed . | . . . . . . . . . . . . . . . . . . . . . . . . . . . . . . . Machines Disabled . | . . . . . . . . . . . . . . . . . . . . . . . . . . . . . . . Actions | -11 -10 -10 -9 -9 -9 -9 -7 -7 -7 -7 -6 -6 -6 -6 -6 -5 -5 -5 -5 -4 -4 -4 -4 -3 -3 -3 -2 -2 -1 -1 --------- Run | Scr Mat Min Mat Sto Gar Rec Fac Low Low Dat Pro Fac Gar Fac Gar Fac Ext Cet Arc Fac Upp Upp War Pro Res Tes Res Qua Acc Gar Total 20004 | 50 894 90 529 980 397 160 989 443 1045 85 367 883 459 582 576 549 950 359 1522 920 751 369 37 904 2693 751 605 334 675 56 Wait 2828 | . 89 3 51 256 19 1 68 6 . . 5 94 12 12 20 25 125 38 1173 9 18 13 . 22 577 32 60 22 63 15 Move 14620 | 40 666 70 404 553 341 158 738 403 1002 85 342 618 310 512 476 418 739 241 314 791 718 356 37 768 1716 574 443 264 482 41 Hop 2 | . . . . . . . . . . . . . . . . . . . . . . . . . . . . . 2 . Pick Up 320 | 4 21 1 10 13 3 . 29 4 10 . . 27 26 9 9 14 8 16 7 20 1 . . 8 44 15 7 5 9 . Fast Attach 114 | 6 5 . 2 2 . . 1 1 2 . 3 13 5 4 6 2 3 6 . 5 . . . 4 17 10 11 1 5 . Attach 138 | . 2 2 3 2 1 . 26 2 6 . 1 14 12 2 . 6 1 . . 2 . . . 11 18 7 5 6 9 . Detach 13 | . 2 . . 1 . . 1 . . . . 1 1 . 1 . . 1 . . . . . . 2 . 3 . . . Swap 283 | . 10 . 7 16 3 . 7 5 . . 1 7 8 16 8 29 21 8 4 18 3 . . 14 61 19 5 2 11 . Drop 299 | . 21 . 5 28 2 . 13 3 . . . 21 17 11 14 17 11 27 8 19 2 . . 3 40 17 11 1 8 . Fire 1247 | . 78 14 44 102 24 . 104 18 23 . 5 75 48 16 32 37 16 22 16 56 9 . . 64 213 70 58 32 71 . Melee 19 | . . . . . . . . . . . 10 . . . . . . . . . . . . . . 6 . 1 2 . Ram 12 | . . . . . . . . . . . . . . . . . . . . . . . . . . . . . 12 . Kick 3 | . . . . . . . . . . . . 3 . . . . . . . . . . . . . . . . . . Crush 25 | . . . 3 7 . 1 2 1 . . . . . . . 1 . . . . . . . 1 5 1 2 . 1 . Escape Stasis 46 | . . . . . 4 . . . . . . 10 20 . 10 . 2 . . . . . . . . . . . . . Rewire 35 | . . . . . . . . . 2 . . . . . . . 24 . . . . . . 9 . . . . . . Trap . | . . . . . . . . . . . . . . . . . . . . . . . . . . . . . . . Miscellaneous . | . . . . . . . . . . . . . . . . . . . . . . . . . . . . . . . Route ------- -11/Scrapyard -10/Materials (discovered 4 exits: *Mat x3 / [*Min]) -10/Mines -9/Materials (discovered 4 exits: [*Mat] / Min / *Sto x2) -9/Storage (discovered 2 exits: [*Mat] / Gar) -9/Garrison -9/Recycling -7/Factory (discovered 3 exits: *Fac / *Low x2) -7/Lower Caves -7/Lower Caves (discovered 2 exits: *Fac / *Dat) -7/Data Miner -6/Proximity Caves -6/Factory (discovered 3 exits: Fac x2 / Gar) -6/Garrison -6/Factory -6/Garrison (discovered 2 exits: *Fac x2) -5/Factory (discovered 2 exits: *Upp / *Ext) -5/Extension (discovered 3 exits: *Fac x2 / *Cet) -5/Cetus (discovered 2 exits: *Fac / *Arc) -5/Archives (discovered 3 exits: *Fac / *Hub x2) -4/Factory (discovered 3 exits: *Res / *Upp x2) -4/Upper Caves -4/Upper Caves -4/Warlord -3/Proximity Caves -3/Research (discovered 3 exits: *Res / *Tes x2) -3/Testing -2/Research -2/Quarantine -1/Access -1/Garrison History --------- Turn | Location | Event 41 | -11/Scrapyard | Discovered new exit (range 12) 54 | -11/Scrapyard | Entered Materials 330 | -10/Materials | Build established: Mutant 695 | -10/Materials | Discovered new exit (range 15) 789 | -10/Materials | Discovered new exit (range 12) 1042 | -10/Materials | Discovered new exit (range 8) 1087 | -10/Materials | Discovered new exit (range 7) 1247 | -10/Materials | Entered Mines 1270 | -10/Mines | Core integrity fell below 50% 1312 | -10/Mines | Discovered new exit (range 10) 1330 | -10/Mines | Learned Materials terminal intel 1402 | -10/Mines | Entered Materials 1402 | -9/Materials | Evolved 2 slots: Propulsion x1, Utility x1 1403 | -9/Materials | Loaded intel: 12 terminal locations 1417 | -9/Materials | Discovered new exit (range 13) 1504 | -9/Materials | Lost 3 parts (2n1w) 1589 | -9/Materials | Identified exit to Mines 1589 | -9/Materials | Identified exit to Storage 1687 | -9/Materials | Build established: Hauler-Mutant 1965 | -9/Materials | Discovered new exit (range 8) 2246 | -9/Materials | Entered Storage 2265 | -9/Storage | Build established: Scavenger-Mutant 2888 | -9/Storage | Build established: Hauler-Mutant 2966 | -9/Storage | Discovered new exit (range 16) 2974 | -9/Storage | Met a pair of Derelict thieves 3186 | -9/Storage | Core integrity fell below 50% 3720 | -9/Storage | Identified exit to Garrison 3721 | -9/Storage | Entered Garrison 3768 | -9/Garrison | Build established: Scavenger-Mutant 3768 | -9/Garrison | Triggered checkpoint 3889 | -9/Garrison | Discovered new exit (range 8) 3910 | -9/Garrison | Installed Relay Interface Framework 3972 | -9/Garrison | Triggered checkpoint 4027 | -9/Garrison | Garrison Relay disabled 4192 | -9/Garrison | Triggered checkpoint 4231 | -9/Garrison | Garrison Relay disabled 4277 | -9/Garrison | Build established: Hauler-Mutant 4406 | -9/Garrison | Entered Recycling 4407 | -9/Recycling | Joined Derelict attack on 0b10 via Recycling 4418 | -9/Recycling | Spotter reported a threat 4419 | -9/Recycling | Spotter reported a threat 4423 | -9/Recycling | Spotter reported a threat 4424 | -9/Recycling | Spotter reported a threat 4424 | -9/Recycling | Spotter reported a threat 4436 | -9/Recycling | Spotter reported a threat 4450 | -9/Recycling | Spotter reported a threat 4477 | -9/Recycling | Spotter reported a threat 4489 | -9/Recycling | Spotter reported a threat 4489 | -9/Recycling | Spotter reported a threat 4489 | -9/Recycling | Spotter reported a threat 4530 | -9/Recycling | Spotter reported a threat 4547 | -9/Recycling | Spotter reported a threat 4547 | -9/Recycling | Spotter reported a threat 4547 | -9/Recycling | Spotter reported a threat 4583 | -9/Recycling | Spotter reported a threat 4597 | -9/Recycling | Spotter reported a threat 4600 | -9/Recycling | Spotter reported a threat 4635 | -9/Recycling | Spotter reported a threat 4677 | -9/Recycling | Discovered new exit (range 10) 4693 | -9/Recycling | Spotter reported a threat 4694 | -9/Recycling | Entered Factory 4694 | -7/Factory | Evolved 4 slots: Utility x3, Weapon x1 5040 | -7/Factory | Discovered new exit (range 12) 5058 | -7/Factory | Identified exit to Lower Caves 5063 | -7/Factory | Build established: Hauler-Tank 5333 | -7/Factory | Fabricated S-27 Virus? 5602 | -7/Factory | Discovered new exit (range 14) 5894 | -7/Factory | First assault squad dispatched 6033 | -7/Factory | Lost 12 parts (4n3u5w) 6189 | -7/Factory | Garrison activated, responded to threat 6288 | -7/Factory | Build established: Hauler-Gunner 6338 | -7/Factory | Core integrity fell below 50% 6362 | -7/Factory | Lost 3 parts (2n1w) 6454 | -7/Factory | Entered Lower Caves 6797 | -7/Lower Caves | Attracted the attention of an 0b10 checkpoint 6981 | -7/Lower Caves | Lost 5 parts (1p1n1u2w) 7071 | -7/Lower Caves | Identified exit to Lower Caves 7222 | -7/Lower Caves | Encountered a Warlord checkpoint 7228 | -7/Lower Caves | Build established: Hauler-Mutant 7259 | -7/Lower Caves | Entered another Lower Caves area 7386 | -7/Lower Caves | Discovered new exit (range 5) 7457 | -7/Lower Caves | Learned 12 Factory zone layouts 7497 | -7/Lower Caves | Learned Armory trap positions 7497 | -7/Lower Caves | Learned Factory security intel 7497 | -7/Lower Caves | Learned Extension security intel 7547 | -7/Lower Caves | Build established: Scavenger-Mutant 7549 | -7/Lower Caves | Learned location of Extension (-5) 7805 | -7/Lower Caves | Lost 4 parts (3n1w) 8069 | -7/Lower Caves | Build established: Hauler-Mutant 8185 | -7/Lower Caves | Encountered a Warlord checkpoint 8915 | -7/Lower Caves | Build established: Hauler-Gunner 12916 | -7/Lower Caves | Learned Factory terminal intel 13176 | -7/Lower Caves | Lost 4 parts (1n3w) 13350 | -7/Lower Caves | Discovered new exit (range 8) 13394 | -7/Lower Caves | Entered Data Miner 13394 | -7/Data Miner | Discovered new exit (range 6) 13433 | -7/Data Miner | Build established: Hauler-Mutant 13436 | -7/Data Miner | Met Data Miner 13480 | -7/Data Miner | Learned location of Section 7 (-2) 13480 | -7/Data Miner | Acquired the access code to Warlord's prototype stash 13526 | -7/Data Miner | Received God Mode back door access code from Data Miner 13581 | -7/Data Miner | Entered Proximity Caves 13793 | -6/Proximity Caves | Escorted by Enhanced Grunt 13801 | -6/Proximity Caves | Core integrity fell below 20% 13838 | -6/Proximity Caves | Lost 3 parts (1n2w) 14212 | -6/Proximity Caves | Learned location of 1 exit from Lower Caves 14280 | -6/Proximity Caves | Discovered new exit (range 9) 14316 | -6/Proximity Caves | Entered Factory 14316 | -6/Factory | Evolved 2 slots: Propulsion x1, Utility x1 14317 | -6/Factory | Identified exit to Factory 14319 | -6/Factory | Loaded intel: 20 terminal locations 14410 | -6/Factory | Incoming investigation squad redirected 14942 | -6/Factory | Lost 3 parts (1p1n1w) 15180 | -6/Factory | Lost 4 parts (1n2u1w) 15286 | -6/Factory | Incoming investigation squad redirected 15455 | -6/Factory | Build established: Scavenger-Tank 15528 | -6/Factory | Garrison activated, responded to threat 15689 | -6/Factory | Identified exit to Garrison 15690 | -6/Factory | Entered Garrison 15698 | -6/Garrison | Expanded RIF knowledge: Hotswap 15736 | -6/Garrison | Triggered checkpoint 15825 | -6/Garrison | Garrison Relay disabled 15919 | -6/Garrison | Spotted B-75 Beast 15940 | -6/Garrison | Destroyed B-75 Beast 15968 | -6/Garrison | Triggered checkpoint 15990 | -6/Garrison | Lost 3 parts (1n2w) 15992 | -6/Garrison | Triggered checkpoint 16017 | -6/Garrison | Triggered checkpoint 16053 | -6/Garrison | Lost 4 parts (1p1n1u1w) 16066 | -6/Garrison | Core integrity fell below 50% 16102 | -6/Garrison | Lost 3 parts (1n1u1w) 16204 | -6/Garrison | Discovered new exit (range 15) 16398 | -6/Garrison | Entered Factory 16809 | -6/Factory | Build established: Scavenger-Skirmisher 17342 | -6/Factory | Identified exit to Garrison 17344 | -6/Factory | Entered Garrison 17464 | -6/Garrison | Garrison Relay disabled 17558 | -6/Garrison | Triggered checkpoint 17626 | -6/Garrison | Triggered checkpoint 17658 | -6/Garrison | Spotted B-75 Beast 17670 | -6/Garrison | Destroyed 8 combat bots 17695 | -6/Garrison | Destroyed B-75 Beast 17870 | -6/Garrison | Discovered exit to Factory (range 9) 17938 | -6/Garrison | Triggered checkpoint 17973 | -6/Garrison | Garrison Relay disabled 18007 | -6/Garrison | Build established: Scavenger-Tank 18168 | -6/Garrison | Discovered exit to Factory (range 12) 18200 | -6/Garrison | Expanded RIF knowledge: Watcher Feeds 18265 | -6/Garrison | Garrison Relay disabled 18278 | -6/Garrison | Triggered checkpoint 18354 | -6/Garrison | Entered Factory 18354 | -5/Factory | Evolved 2 slots: Utility x2 18548 | -5/Factory | Discovered new exit (range 7) 18654 | -5/Factory | First assault squad dispatched 18665 | -5/Factory | Build established: Scavenger-Skirmisher 18753 | -5/Factory | Identified exit to Upper Caves 18841 | -5/Factory | Lost 3 parts (2n1w) 19215 | -5/Factory | Discovered new exit (range 8) 19246 | -5/Factory | Identified exit to Extension 19247 | -5/Factory | Entered Extension 19320 | -5/Extension | Rescued a captive Derelict 19321 | -5/Extension | Rescued a captive Derelict 19399 | -5/Extension | Rescued A7 19404 | -5/Extension | Incoming investigation squad redirected 19522 | -5/Extension | Rescued a captive Derelict 19523 | -5/Extension | Rescued a captive Derelict 19565 | -5/Extension | Rescued a captive Derelict 19566 | -5/Extension | Rescued a captive Derelict 19971 | -5/Extension | Spotted B-75 Beast 19982 | -5/Extension | Allies destroyed B-75 Beast 19988 | -5/Extension | Spotted B-75 Beast 20002 | -5/Extension | Hijacked Beast 6a control node with streamctrl_high 20018 | -5/Extension | Allies destroyed Beast 6a 20054 | -5/Extension | Discovered new exit (range 15) 20261 | -5/Extension | Rescued a captive Derelict 20261 | -5/Extension | Rescued a captive Derelict 20293 | -5/Extension | Rescued a captive Derelict 20387 | -5/Extension | Rescued a captive Derelict 20391 | -5/Extension | Rescued a captive Derelict 20473 | -5/Extension | Rescued a captive Derelict 20521 | -5/Extension | Rescued a captive Derelict 20522 | -5/Extension | Rescued a captive Derelict 20536 | -5/Extension | Rescued a captive Derelict 20537 | -5/Extension | Rescued a captive Derelict 20570 | -5/Extension | Discovered new exit (range 20) 20595 | -5/Extension | Disrupted transfer network 20595 | -5/Extension | Discovered new exit (range 10) 20613 | -5/Extension | Identified exit to Cetus 20672 | -5/Extension | Entered Cetus 20672 | -5/Cetus | Accompanied by 13 allies (A7) 20677 | -5/Cetus | Acquired a Cetus Manufacturing Module code from A7 20699 | -5/Cetus | Spotted Cetus Guard 20699 | -5/Cetus | Spotted Cetus Guard 20700 | -5/Cetus | Spotted Cetus Guard 20700 | -5/Cetus | Spotted Cetus Guard 20711 | -5/Cetus | Allies destroyed Cetus Guard 20714 | -5/Cetus | Allies destroyed Cetus Guard 20718 | -5/Cetus | Allies destroyed Cetus Guard 20723 | -5/Cetus | Allies destroyed Cetus Guard 20723 | -5/Cetus | Extracted ID and sensor layout for unrecognized location from A7's data core 20882 | -5/Cetus | Started Cetus Manufacturing Module 20907 | -5/Cetus | Manufactured an Enhanced Grunt 20932 | -5/Cetus | Manufactured an Enhanced Grunt 20932 | -5/Cetus | Discovered new exit (range 15) 20957 | -5/Cetus | Manufactured an Enhanced Grunt 20982 | -5/Cetus | Manufactured an Enhanced Grunt 20989 | -5/Cetus | Discovered new exit (range 27) 21007 | -5/Cetus | Manufactured an Enhanced Grunt 21007 | -5/Cetus | Destroyed Cetus Guard 21009 | -5/Cetus | Spotted Cetus Guard 21009 | -5/Cetus | Spotted Cetus Guard 21013 | -5/Cetus | Allies destroyed Cetus Guard 21015 | -5/Cetus | Spotted Cetus Guard 21019 | -5/Cetus | Allies destroyed Cetus Guard 21024 | -5/Cetus | Allies destroyed Cetus Guard 21053 | -5/Cetus | Met Revision 17 21191 | -5/Cetus | Identified exit to Archives 21195 | -5/Cetus | Entered Archives 21195 | -5/Archives | Accompanied by 4 allies 21257 | -5/Archives | Unable to access archive contents 21270 | -5/Archives | Build established: Scavenger-Tank 21332 | -5/Archives | Discovered new exit (range 15) 21390 | -5/Archives | Discovered new exit (range 15) 21417 | -5/Archives | Identified exit to Hub_04(d) 21507 | -5/Archives | Discovered new exit (range 16) 21529 | -5/Archives | Identified exit to Factory 22930 | -5/Archives | Entered Factory 22930 | -4/Factory | Accompanied by 3 allies 22930 | -4/Factory | Evolved 2 slots: Propulsion x1, Utility x1 23039 | -4/Factory | Build established: Scavenger-Skirmisher 23427 | -4/Factory | Spotted B-86 Titan 23642 | -4/Factory | Discovered new exit (range 3) 23645 | -4/Factory | Identified exit to Research 23659 | -4/Factory | Identified exit to Upper Caves 24231 | -4/Factory | Garrison activated, responded to threat 24413 | -4/Factory | Entered Upper Caves 25021 | -4/Upper Caves | Learned Research interactive machine intel 25391 | -4/Upper Caves | Learned Research stockpile data 25498 | -4/Upper Caves | Learned Factory stockpile data 25498 | -4/Upper Caves | Learned Extension stockpile data 25498 | -4/Upper Caves | Learned Armory stockpile data 25498 | -4/Upper Caves | Learned Armory terminal intel 25498 | -4/Upper Caves | Learned Armory garrison access intel 25595 | -4/Upper Caves | Discovered new exit (range 6) 25602 | -4/Upper Caves | Identified exit to Upper Caves 25610 | -4/Upper Caves | Entered another Upper Caves area 26108 | -4/Upper Caves | Discovered new exit (range 11) 26191 | -4/Upper Caves | Identified exit to Warlord 26193 | -4/Upper Caves | Entered Warlord 26238 | -4/Warlord | Discovered new exit (range 9) 26249 | -4/Warlord | Identified exit to Proximity Caves 26253 | -4/Warlord | Entered Proximity Caves 26552 | -3/Proximity Caves | Attracted the attention of an 0b10 outpost 26598 | -3/Proximity Caves | Destroyed 9 combat bots 26638 | -3/Proximity Caves | System corruption reached 10% 26709 | -3/Proximity Caves | Lost 9 parts (1p1n5u2w) 27062 | -3/Proximity Caves | Build established: Scavenger-Tank 27229 | -3/Proximity Caves | Lost 3 parts (1n1u1w) 27726 | -3/Proximity Caves | Discovered exit to Research (range 4) 27736 | -3/Proximity Caves | Entered Research 27736 | -3/Research | Evolved 2 slots: Utility x1, Weapon x1 27737 | -3/Research | Identified exit to Testing 27739 | -3/Research | Loaded intel: 38 interactive machine locations 28483 | -3/Research | Found Fusion Bomb Launcher 28790 | -3/Research | Lost 4 parts (1p3u) 28839 | -3/Research | System corruption reached 10% 28884 | -3/Research | Discovered new exit (range 15) 28955 | -3/Research | Found Unknown Device 29027 | -3/Research | Identified exit to Research 29647 | -3/Research | Found Imp. Powered Armor 30712 | -3/Research | Garrison activated, responded to threat 30984 | -3/Research | Found Unknown Protection 30984 | -3/Research | Identified Adv. Powered Armor 31236 | -3/Research | First assault squad dispatched 31259 | -3/Research | Incoming assault squad redirected 31505 | -3/Research | Incoming assault squad redirected 31509 | -3/Research | Incoming assault squad redirected 31761 | -3/Research | Incoming assault squad redirected 31887 | -3/Research | Incoming assault squad redirected 31919 | -3/Research | Discovered exit to Testing (range 15) 31961 | -3/Research | Entered Testing 32123 | -3/Testing | Spotted PG-Q2PX2PVMFD 32142 | -3/Testing | Destroyed PG-Q2PX2PVMFD 32491 | -3/Testing | Discovered exit to Research (range 16) 32577 | -3/Testing | Found Prototype Device 32647 | -3/Testing | Identified AEGIS Remote Shield 32711 | -3/Testing | First assault squad dispatched 32737 | -3/Testing | Incoming assault squad redirected 32786 | -3/Testing | Destroyed 8 combat bots 32889 | -3/Testing | Found Prototype Device 32983 | -3/Testing | Incoming assault squad redirected 33039 | -3/Testing | Lost 3 parts (2u1w) 33063 | -3/Testing | Destroyed 8 combat bots 33209 | -3/Testing | Entered Research 33209 | -2/Research | Evolved 2 slots: Propulsion x1, Utility x1 33459 | -2/Research | First assault squad dispatched 33759 | -2/Research | Incoming assault squad redirected 34006 | -2/Research | Destroyed 7 combat bots 34055 | -2/Research | Spotted B-90 Cyclops 34071 | -2/Research | Discovered new exit (range 16) 34106 | -2/Research | Identified exit to Quarantine 34107 | -2/Research | Entered Quarantine 34120 | -2/Quarantine | Spotted Alpha 7 34393 | -2/Quarantine | Lost 3 parts (1n1u1w) 34475 | -2/Quarantine | Found Alien Slashing Weapon 34501 | -2/Quarantine | Discovered new exit (range 11) 34514 | -2/Quarantine | Identified exit to Access 34585 | -2/Quarantine | Garrison activated, responded to threat 34615 | -2/Quarantine | Entered Access 34615 | -1/Access | Evolved 2 slots: Power x1, Weapon x1 34621 | -1/Access | Destroyed 8 combat bots 34645 | -1/Access | Lost 4 parts (1p2u1w) 34930 | -1/Access | Build established: Scavenger-Gunner 35115 | -1/Access | First assault squad dispatched 35137 | -1/Access | Incoming assault squad redirected 35218 | -1/Access | Identified Sigix Broadsword 35249 | -1/Access | Lost 9 parts (2n3u4w) 35317 | -1/Access | Released all parts (10) 35337 | -1/Access | Core integrity fell below 50% 35369 | -1/Access | Incoming investigation squad redirected 35369 | -1/Access | Lost 11 parts (2p2n3u4w) 35382 | -1/Access | Incoming assault squad redirected 35395 | -1/Access | Core integrity fell below 20% 35402 | -1/Access | Found Enh. Force Lance 35406 | -1/Access | Incoming investigation squad redirected 35435 | -1/Access | Identified exit to Garrison 35438 | -1/Access | Entered Garrison 35441 | -1/Garrison | Expanded RIF knowledge: Signal Jamming 35474 | -1/Garrison | Destroyed by S-43 Plague with Heavy Machine Gun Last Messages --------------- 35391_ Slammed into P-80 Master. 35396_ Slammed into T-07 Excavator. 35401_ Dropped Adv. Terrain Scan Processor. 35402_ Acquired Enh. Force Lance. 35405_ Slammed into T-07 Excavator. 35406_ ALERT: Higher priority target reported, redirecting investigation. 35407_ Slammed into K-01 Serf. 35426_ System corrupted: Energy discharge (-35). 35428_ Detecting nearby Garrison Access. 35429_ Slammed into A-15 Conveyor. 35435_ Connecting with Garrison Access... >>Unlock Access door unlocked. 35435_ EXIT=UNLOCKED: GARRISON LOCATION=GARRISON GOAL=ESCAPE 35441_ UBWNZ#7BUHH4NTM=QFC13VYWCRFRG9KP 35441_ Initiating installation procedure... 35441_ Expanded RIF knowledge: Signal Jamming. [Achievement: Punisher] Map ----- +----------------------------------------------------+ | ?????????????????????????????????????????????????? | | ?????????????????????????????????????????????????? | | ?????????????????????????????????????????????????? | | ?????????????????????????????????????????????????? | | ?????????????????????????????????????????????????? | | ?????????????????????????????????????????????????? | | ?????????????????????????????????????????????????? | | ?????????????????????????????????????????????????? | | ?????????????????????????????????????????????????? | | ?????????????????????????????????????????????????? | | ?????????????????????????????????????????????????? | | ?????????????????????????????????????????????????? | | ?????????????????????????????????????????????????? | | ????????????????##???????????????????????????????? | | ???????????????# ???????????????????????????????? | | ???????????????# ???????????????????????????????? | | ???????????????# ???????????????????????????????? | | ???????????????# ???????????????????????????????? | | ???????????????# #??????????????????????????????? | | ??????????????## #???###????????????????????????? | | ??????????????? +??? ????#???????????????????? | | ???????????????# #???# #??? #???????????????????? | | ???????????????# #???# #?? #???????????????????? | | ???????????????# #####s### #???????????????????? | | ???????????????# s ss #???????????????????? | | ???????????????# @ #???????????????????? | | ???????????????# ############???????????????????? | | ???????????????# #??????????????????????????????? | | ???????????????# #??????????????????????????????? | | ???????????????# #??????????????????????????????? | | ???????????????# #??????????????????????????????? | | ???????????????# #??????????????????????????????? | | ???????????????# #??????????????????????????????? | | ???????????????# #??????????????????????????????? | | ???????????????# #??????????????????????????????? | | ???????????????# #??????????????????????????????? | | ??????########## #??????????????????????????????? | | ??????# #??????????????????????????????? | | ??????# #??????????????????????????????? | | ??????# #########??????????????????????????????? | | ??????# #??????????????????????????????????????? | | ??????## ##??????????????????????????????????????? | | ??????#" "#??????????????????????????????????????? | | ??????#" "#??????????????????????????????????????? | | ??????#" "#??????????????????????????????????????? | | ??????#"""#??????????????????????????????????????? | | ??????#####??????????????????????????????????????? | | ?????????????????????????????????????????????????? | | ?????????????????????????????????????????????????? | | ?????????????????????????????????????????????????? | +----------------------------------------------------+ Best States ------------- Heat Dissipation 94 Coolant Potential 80 Energy Generation 41 Energy Capacity 350 Matter Stores 450 Matter Capacity 450 Sight Range 22 Robot Scan Range 20 Terrain Scan Range 20 Terrain Scan Density 210 Armor Coverage 1700 Resistance: KI 30 Resistance: EM 25 Weapon Shielding 66 Weapon Cycling 25 Melee Speed Boost 20 Phase Shifting 15 Evasion (%) 62 Targeting Accuracy 6 Target Analysis 8 Recoil Reduction 6 Particle Charging 20 Kinecelleration 40 Offensive Hacking 28 Relay Coupler Types 25 Relay Coupler Value 2 Item Schematics ----------------- Lrn. Tractor Beam | -9/Storage | Hacked Combat Drone Bay | -7/Data Miner | Free Lgt. Regenerative Plating | -7/Data Miner | Free Cmb. Gravmag System | -7/Data Miner | Free Exp. Transmission Jammer | -7/Data Miner | Free Exp. ECM Suite | -7/Data Miner | Free Cloaking Device | -7/Data Miner | Free Kinetic Spear | -7/Data Miner | Free Robot Schematics ------------------ S-27 Virus | -7/Data Miner | Free G-50 Soldier | -7/Data Miner | Free G-67 Veteran | -7/Data Miner | Free L-41 Fighter | -7/Data Miner | Free X-72 Disruptor | -7/Data Miner | Free P-70 Sage | -7/Data Miner | Free I-36 Angel | -7/Data Miner | Free I-47 Archangel | -7/Data Miner | Free Fabricated ------------ S-27 Virus | x4 | -7/Factory | Preloaded Alien Tech Used ----------------- Sigix Broadsword Achievements -------------- Can't Touch This Project G-00 Punisher Revising The Future Turtlemind Challenges ------------ None Game ------ Seed ShockLargeArmor Manual? 0 Play Time 04:03:07 Cumulative 172.8 hours Start 2021.07.12 @ 19:35:37 End 2021.07.13 @ 20:08:56 Sessions 7 Manual Loads 0 Difficulty Rogue Special Mode None Game No. 126 Rogue 126 Adventurer 0 Explorer 0 Win Type - Total 6 Types 5/0/0/0/0/0/0/1/0 Lore% 81 Gallery% 68 Achievement% 57 Wizard Run 0 Options --------- ASCII 0 Keyboard 1 Movement Arrows Keybinds 0 Fullscreen 1 Font 18/SmallcapsGlow Map View 76x50 Tactical HUD 1 Map Filters NONE Filters NONE Steam 1 RUN: f3f319f2-f5ff-42c8-9d55-0d97d9341899